lending/lending_fUSD_20251107
["ID","MTS","AMOUNT","RATE_DAILY","PERIOD"]
[393357840,1762520556372,-1200.0,0.0001654,2]
[393357841,1762520556392,-300.0,0.0001654,2]
[393357842,1762520556413,-300.0,0.0001654,2]
[393357843,1762520556437,-300.0,0.00016541,2]
[393357844,1762520556458,-164.9851719,0.00016541,2]
[393357845,1762520556479,-250.0,0.00016541,2]
[393357846,1762520556500,-195.0,0.00016541,2]
[393357847,1762520556521,-195.0,0.00016541,2]
[393357848,1762520556542,-195.0,0.00016541,2]
[393357849,1762520556564,-300.0,0.00016847,2]
[393357850,1762520556584,-1126.36,0.00016848,2]
[393357851,1762520556603,-229.66,0.00016864,2]
[393357852,1762520556627,-382.0,0.00016903,2]
[393357853,1762520556652,-1000.0,0.00016904,2]
[393357854,1762520556673,-318.52230144,0.00016905,2]
[393357895,1762521031496,-164.04,0.00015733,2]
[393357896,1762521031506,-164.04,0.00016147,2]
[393357897,1762521031519,-164.04,0.00016561,2]
[393357898,1762521031534,-200.0,0.00016617,2]
[393357899,1762521031544,-500.0,0.00016804,2]
[393357900,1762521031555,-500.0,0.00016877,2]
[393357901,1762521031564,-160.0,0.00016902,2]
[393357902,1762521031574,-300.0,0.00016904,2]
[393357903,1762521031584,-300.0,0.00016904,2]
[393357904,1762521031593,-1200.0,0.00016904,2]
[393357905,1762521031603,-6832.48,0.00016905,2]
[393357906,1762521031615,-2632.90544864,0.00016905,2]
[393357907,1762521031626,-1269.3013,0.00016905,2]
[393357908,1762521031637,-2042.36094992,0.00016905,2]
[393357909,1762521031647,-164.04,0.00016975,2]
[393357910,1762521031656,-250.0,0.00017,2]
[393357911,1762521031666,-151.0,0.00017026,2]
[393357912,1762521031675,-156.587,0.00017026,2]
[393357913,1762521031685,-157.72711831,0.00017026,2]
[393357914,1762521031694,-241.15,0.00017127,2]
[393357915,1762521031703,-174.06,0.00017136,2]
[393357916,1762521031713,-166.66,0.0001723,2]
[393357918,1762521031722,-1000.0,0.000173,2]
[393357920,1762521031731,-557.43795097,0.000173,2]
[393357922,1762521031742,-164.04,0.00017389,2]
[393357923,1762521031751,-550.0,0.00017399,2]
[393357924,1762521031760,-234.3744,0.000174,2]
[393357925,1762521031773,-3221.49975064,0.000174,2]
[393357926,1762521031785,-6776.83895231,0.000174,2]
[393357927,1762521031797,-2441.587,0.000174,2]
[393357928,1762521031807,-1000.0,0.000174,2]
[393357929,1762521031817,-376.6224207,0.000174,2]
[393357930,1762521031827,-711.1423,0.000174,2]
[393357932,1762521031836,-2500.0,0.000174,2]
[393357934,1762521031846,-1000.0,0.000174,2]
[393357936,1762521031855,-6422.75201373,0.000174,2]
[393357938,1762521031865,-435.93670601,0.000174,2]
[393357940,1762521031875,-9998.33870293,0.00017456,2]
[393357942,1762521031885,-6422.75201365,0.00017456,2]
[393357944,1762521031894,-170.18333266,0.00017473,2]
[393357945,1762521031904,-476.03838915,0.00017473,2]
[393357946,1762521031913,-500.86745626,0.00017473,2]
[393357947,1762521031922,-500.0,0.00017473,2]
[393357948,1762521031932,-620.64256179,0.00017473,2]
[393357949,1762521031941,-500.0,0.00017473,2]
[393357950,1762521031951,-552.1894013,0.00017473,2]
[393357951,1762521031960,-500.0,0.00017473,2]
[393357952,1762521031970,-500.0,0.00017473,2]
[393357953,1762521031980,-500.0,0.00017473,2]
[393357954,1762521031990,-500.0,0.00017473,2]
[393357955,1762521031999,-500.0,0.00017473,2]
[393357956,1762521032009,-500.0,0.00017473,2]
[393357957,1762521032022,-500.0,0.00017473,2]
[393357958,1762521032031,-500.0,0.00017473,2]
[393357959,1762521032041,-500.0,0.00017473,2]
[393357960,1762521032055,-500.0,0.00017473,2]
[393357961,1762521032064,-500.0,0.00017473,2]
[393357962,1762521032074,-500.0,0.00017473,2]
[393357963,1762521032084,-500.0,0.00017473,2]
[393357964,1762521032095,-500.0,0.00017473,2]
[393357965,1762521032104,-500.0,0.00017473,2]
[393357966,1762521032113,-213.87973632,0.00017488,2]
[393357967,1762521032124,-237.72866339,0.00017489,2]
[393357968,1762521032136,-313.40543479,0.00017489,2]
[393357969,1762521032145,-239.75520452,0.00017489,2]
[393357970,1762521032154,-151.0,0.00017489,2]
[393357971,1762521032164,-151.0,0.00017489,2]
[393357972,1762521032174,-151.0,0.00017489,2]
[393357973,1762521032185,-151.0,0.00017489,2]
[393357974,1762521032196,-151.0,0.00017489,2]
[393357975,1762521032210,-151.0,0.00017489,2]
[393357976,1762521032220,-151.0,0.00017489,2]
[393357977,1762521032229,-151.0,0.00017489,2]
[393357978,1762521032240,-151.0,0.00017489,2]
[393357979,1762521032250,-151.0,0.00017489,2]
[393357980,1762521032259,-151.0,0.00017489,2]
[393357981,1762521032274,-151.0,0.00017489,2]
[393357982,1762521032500,-151.0,0.00017489,2]
[393357983,1762521032513,-151.0,0.00017489,2]
[393357984,1762521032527,-151.0,0.00017489,2]
[393357985,1762521032537,-151.0,0.00017489,2]
[393357986,1762521032547,-151.0,0.00017489,2]
[393357987,1762521032556,-151.0,0.00017489,2]
[393357988,1762521032565,-151.0,0.00017489,2]
[393357989,1762521032575,-151.0,0.00017489,2]
[393357990,1762521032586,-151.0,0.00017489,2]
[393357991,1762521032596,-151.0,0.00017489,2]
[393357992,1762521032605,-151.0,0.00017489,2]
[393357993,1762521032614,-151.0,0.00017489,2]
[393357994,1762521032623,-151.0,0.00017489,2]
[393357995,1762521032632,-151.0,0.00017489,2]
[393357996,1762521032641,-151.0,0.00017489,2]
[393357997,1762521032651,-151.0,0.00017489,2]
[393357998,1762521032660,-151.0,0.00017489,2]
[393357999,1762521032669,-151.0,0.00017489,2]
[393358000,1762521032678,-151.0,0.00017489,2]
[393358001,1762521032688,-151.0,0.00017489,2]
[393358002,1762521032697,-151.0,0.00017489,2]
[393358003,1762521032706,-151.0,0.00017489,2]
[393358004,1762521032715,-151.0,0.00017489,2]
[393358005,1762521032725,-151.0,0.00017489,2]
[393358006,1762521032734,-151.0,0.00017489,2]
[393358007,1762521032744,-151.0,0.00017489,2]
[393358008,1762521032753,-151.0,0.00017489,2]
[393358009,1762521032762,-260.92709679,0.00017489,2]
[393358010,1762521032774,-499.25,0.0001749,2]
[393358011,1762521032784,-151.0,0.00017497,2]
[393358012,1762521032793,-186.58334751,0.00017499,2]
[393358013,1762521032802,-500.0,0.00017499,2]
[393358014,1762521032811,-229.38123945,0.00017499,2]
[393358015,1762521032820,-315.73217479,0.00017499,2]
[393358016,1762521032830,-302.8162062,0.00017499,2]
[393358017,1762521032839,-500.0,0.00017499,2]
[393358018,1762521032848,-500.0,0.00017499,2]
[393358019,1762521032857,-500.0,0.00017499,2]
[393358020,1762521032866,-500.0,0.00017499,2]
[393358021,1762521032875,-224.33769493,0.00017499,2]
[393358022,1762521032884,-500.0,0.00017499,2]
[393358023,1762521032894,-500.0,0.00017499,2]
[393358024,1762521032906,-500.0,0.00017499,2]
[393358025,1762521032915,-259.78032375,0.00017499,2]
[393358026,1762521032924,-500.0,0.00017499,2]
[393358027,1762521032934,-515.63484931,0.00017499,2]
[393358028,1762521032943,-500.0,0.00017499,2]
[393358029,1762521032952,-530.67245019,0.00017499,2]
[393358030,1762521032961,-500.0,0.00017499,2]
[393358031,1762521032970,-92375.64846778,0.000175,2]
[393358032,1762521032983,-298.19895225,0.000175,2]
[393358033,1762521033002,-482.24,0.000175,2]
[393358034,1762521033015,-1081.5,0.000175,2]
[393358035,1762521033031,-2026.57983289,0.000175,2]
[393358038,1762521037455,-263735.83274708,0.000175,2]
[393358039,1762521037464,-1000.0,0.000175,2]
[393358040,1762521037474,-1000.0,0.000175,2]
[393358041,1762521037483,-1459.0,0.000175,2]
[393358042,1762521037492,-15270.76540876,0.000175,2]
[393358043,1762521037502,-1472.31101486,0.000175,2]
[393358044,1762521037511,-9998.33870293,0.00017511,2]
[393358045,1762521037520,-6422.75201365,0.00017511,2]
[393358046,1762521037532,-9998.33870293,0.00017567,2]
[393358047,1762521037541,-6422.75201365,0.00017567,2]
[393358048,1762521037551,-500.0,0.00017573,2]
[393358049,1762521037560,-330.33341059,0.00017573,2]
[393358050,1762521037569,-500.0,0.00017573,2]
[393358051,1762521037579,-512.33896105,0.00017573,2]
[393358052,1762521037588,-500.0,0.00017573,2]
[393358053,1762521037597,-501.02087707,0.00017573,2]
[393358054,1762521037606,-500.0,0.00017573,2]
[393358055,1762521037615,-505.50862562,0.00017573,2]
[393358056,1762521037625,-500.0,0.00017573,2]
[393358057,1762521037634,-500.0,0.00017573,2]
[393358058,1762521037644,-465.14690898,0.00017573,2]
[393358059,1762521037654,-500.77100973,0.00017573,2]
[393358060,1762521037664,-500.0,0.00017573,2]
[393358061,1762521037673,-500.0,0.00017573,2]
[393358062,1762521037683,-500.2462784,0.00017573,2]
[393358063,1762521037692,-500.0,0.00017573,2]
[393358064,1762521037702,-463.607732,0.00017573,2]
[393358065,1762521037711,-158.19215752,0.00017573,2]
[393358066,1762521037720,-500.0,0.00017573,2]
[393358067,1762521037729,-500.0,0.00017573,2]
[393358068,1762521037738,-635.57618945,0.00017573,2]
[393358069,1762521037747,-500.0,0.00017573,2]
[393358070,1762521037757,-500.0,0.00017573,2]
[393358071,1762521037766,-500.0,0.00017573,2]
[393358072,1762521037777,-500.0,0.00017573,2]
[393358073,1762521037787,-219.0,0.00017581,2]
[393358074,1762521037796,-161.9975394,0.00017597,2]
[393358075,1762521037806,-500.0,0.00017599,2]
[393358076,1762521037815,-500.0,0.00017599,2]
[393358077,1762521037826,-500.0,0.00017599,2]
[393358078,1762521037835,-500.0,0.00017599,2]
[393358079,1762521037845,-500.0,0.00017599,2]
[393358080,1762521037854,-642.66,0.00017599,2]
[393358081,1762521037863,-500.0,0.00017599,2]
[393358082,1762521037873,-500.0,0.00017599,2]
[393358083,1762521037882,-500.0,0.00017599,2]
[393358084,1762521037891,-420000.0,0.000176,2]
[393358085,1762521037901,-1000.0,0.000176,2]
[393358086,1762521037910,-737.1013,0.000176,2]
[393358087,1762521037919,-1000.0,0.000176,2]
[393358088,1762521037930,-9998.33870293,0.00017622,2]
[393358089,1762521037939,-6422.75201365,0.00017622,2]
[393358090,1762521037948,-9998.33870293,0.00017678,2]
[393358091,1762521037958,-6422.75201365,0.00017678,2]
[393358092,1762521037967,-893.85465609,0.00017685,2]
[393358093,1762521037977,-500.0,0.00017699,2]
[393358094,1762521037986,-500.0,0.00017699,2]
[393358095,1762521037995,-1472.31101486,0.000177,2]
[393358096,1762521038005,-9998.33870293,0.00017733,2]
[393358097,1762521038015,-6422.75201365,0.00017733,2]
[393358098,1762521038024,-267.0,0.00017746,2]
[393358099,1762521038034,-499.25,0.00017764,2]
[393358100,1762521038043,-9998.33870293,0.00017789,2]
[393358101,1762521038053,-6422.75201365,0.00017789,2]
[393358102,1762521038065,-166.66,0.00017799,2]
[393358103,1762521038275,-1765.03368788,0.0001783,2]
[393358104,1762521038291,-9998.33870293,0.00017844,2]
[393358105,1762521038302,-6422.75201365,0.00017844,2]
[393358106,1762521038313,-200.0,0.00017856,2]
[393358107,1762521038325,-318.06,0.00017859,2]
[393358108,1762521038339,-435.93670594,0.00017877,2]
[393358109,1762521038349,-382.61244822,0.00017899,2]
[393358110,1762521038361,-1472.31101486,0.00017899,2]
[393358111,1762521038373,-9998.33870293,0.000179,2]
[393358112,1762521038384,-432.5630204,0.000179,2]
[393358113,1762521038395,-462.43103622,0.000179,2]
[393358114,1762521038407,-6422.75201365,0.000179,2]
[393358115,1762521038418,-259.20438134,0.000179,2]
[393358116,1762521038434,-150.0,0.00017963,2]
[393358117,1762521038444,-500.0,0.00017963,2]
[393358118,1762521038455,-500.0,0.00017963,2]
[393358119,1762521038465,-150.0,0.00017963,2]
[393358120,1762521038475,-500.0,0.00017963,2]
[393358121,1762521038485,-500.0,0.00017963,2]
[393358122,1762521038495,-150.0,0.00017963,2]
[393358123,1762521038506,-500.0,0.00017963,2]
[393358124,1762521038516,-500.0,0.00017963,2]
[393358125,1762521038525,-150.0,0.00017963,2]
[393358126,1762521038542,-500.0,0.00017963,2]
[393358127,1762521038552,-500.0,0.00017963,2]
[393358128,1762521038562,-150.0,0.00017963,2]
[393358129,1762521038572,-150.0,0.00017963,2]
[393358130,1762521038581,-500.0,0.00017963,2]
[393358131,1762521038591,-500.0,0.00017963,2]
[393358132,1762521038601,-674.0,0.00017963,2]
[393358133,1762521038611,-150.0,0.00017963,2]
[393358134,1762521038620,-500.0,0.00017963,2]
[393358135,1762521038630,-551.0,0.00017963,2]
[393358136,1762521038639,-500.0,0.00017963,2]
[393358137,1762521038649,-150.0,0.00017963,2]
[393358138,1762521038660,-150.0,0.00017963,2]
[393358139,1762521038670,-150.0,0.00017963,2]
[393358140,1762521038680,-500.0,0.00017963,2]
[393358141,1762521038690,-150.0,0.00017963,2]
[393358142,1762521038700,-150.0,0.00017963,2]
[393358143,1762521038710,-500.0,0.00017963,2]
[393358144,1762521038720,-150.0,0.00017963,2]
[393358145,1762521038730,-150.0,0.00017963,2]
[393358146,1762521038740,-150.0,0.00017963,2]
[393358147,1762521038750,-500.0,0.00017963,2]
[393358148,1762521038760,-500.0,0.00017963,2]
[393358149,1762521038770,-150.0,0.00017963,2]
[393358150,1762521038784,-158.10520821,0.00017963,2]
[393358151,1762521038795,-150.0,0.00017963,2]
[393358152,1762521038805,-150.0,0.00017963,2]
[393358153,1762521038815,-500.0,0.00017963,2]
[393358154,1762521038825,-155.73974734,0.00017963,2]
[393358155,1762521038834,-150.0,0.00017963,2]
[393358156,1762521038844,-500.0,0.00017963,2]
[393358157,1762521038854,-150.0,0.00017963,2]
[393358158,1762521038864,-500.0,0.00017963,2]
[393358159,1762521038875,-500.0,0.00017963,2]
[393358160,1762521038884,-500.0,0.00017963,2]
[393358161,1762521038895,-500.0,0.00017963,2]
[393358162,1762521038904,-500.0,0.00017963,2]
[393358163,1762521038915,-500.0,0.00017963,2]
[393358164,1762521038925,-500.0,0.00017963,2]
[393358165,1762521038935,-500.0,0.00017963,2]
[393358166,1762521038945,-500.0,0.00017963,2]
[393358167,1762521038954,-500.0,0.00017963,2]
[393358168,1762521038964,-168.34614064,0.00017963,2]
[393358169,1762521038974,-500.0,0.00017963,2]
[393358170,1762521038984,-150.0,0.00017963,2]
[393358171,1762521038994,-184.0,0.00017973,2]
[393358172,1762521039005,-500.0,0.0001798,2]
[393358173,1762521039015,-150.0,0.00017981,2]
[393358174,1762521039030,-297.41460461,0.00017983,2]
[393358175,1762521039040,-300.0,0.00017992,2]
[393358176,1762521039052,-300.0,0.00017992,2]
[393358177,1762521039065,-3615.0,0.00017993,2]
[393358178,1762521039076,-1000.0,0.00017993,2]
[393358179,1762521039086,-1000.0,0.00017993,2]
[393358180,1762521039097,-1000.0,0.00017993,2]
[393358181,1762521039108,-154.047,0.00017993,2]
[393358182,1762521039117,-1000.0,0.00017993,2]
[393358183,1762521039127,-1000.0,0.00017993,2]
[393358184,1762521039138,-1000.0,0.00017993,2]
[393358185,1762521039148,-1000.0,0.00017993,2]
[393358186,1762521039158,-1000.0,0.00017993,2]
[393358187,1762521039168,-1000.0,0.00017993,2]
[393358188,1762521039179,-1000.0,0.00017993,2]
[393358189,1762521039189,-1000.0,0.00017993,2]
[393358190,1762521039199,-1000.0,0.00017993,2]
[393358191,1762521039209,-254762.7280206,0.00017993,2]
[393358192,1762521039219,-151.0,0.00017993,2]
[393358193,1762521039229,-151.0,0.00017993,2]
[393358194,1762521039239,-151.0,0.00017993,2]
[393358195,1762521039249,-151.0,0.00017993,2]
[393358196,1762521039258,-151.0,0.00017993,2]
[393358197,1762521039269,-151.0,0.00017993,2]
[393358198,1762521039281,-171.130794,0.00017993,2]
[393358199,1762521039290,-151.0,0.00017993,2]
[393358200,1762521039300,-271.678733,0.00017993,2]
[393358201,1762521039310,-151.0,0.00017993,2]
[393358202,1762521039319,-162.62384,0.00017993,2]
[393358203,1762521039329,-151.0,0.00017993,2]
[393358204,1762521039339,-151.0,0.00017993,2]
[393358205,1762521039349,-278.855926,0.00017993,2]
[393358206,1762521039359,-151.0,0.00017993,2]
[393358207,1762521039369,-151.0,0.00017993,2]
[393358208,1762521039380,-151.000008,0.00017993,2]
[393358209,1762521039390,-154.619845,0.00017993,2]
[393358210,1762521039401,-151.0,0.00017993,2]
[393358211,1762521039410,-271.678733,0.00017993,2]
[393358212,1762521039420,-151.0,0.00017993,2]
[393358213,1762521039429,-271.678733,0.00017993,2]
[393358214,1762521039439,-158.168971,0.00017993,2]
[393358216,1762521039448,-151.0,0.00017993,2]
[393358217,1762521039457,-271.678733,0.00017993,2]
[393358218,1762521039467,-158.168971,0.00017993,2]
[393358219,1762521039476,-158.168971,0.00017993,2]
[393358220,1762521039486,-158.168971,0.00017993,2]
[393358221,1762521039496,-151.0,0.00017993,2]
[393358222,1762521039506,-151.0,0.00017993,2]
[393358223,1762521039515,-151.0,0.00017993,2]
[393358224,1762521039525,-151.0,0.00017993,2]
[393358225,1762521039537,-151.0,0.00017993,2]
[393358226,1762521039547,-151.0,0.00017993,2]
[393358227,1762521039557,-4859.405468,0.00017993,2]
[393358228,1762521039567,-455.158256,0.00017993,2]
[393358229,1762521039577,-151.0,0.00017993,2]
[393358230,1762521039586,-455.158256,0.00017993,2]
[393358231,1762521039596,-455.158256,0.00017993,2]
[393358232,1762521039606,-151.0,0.00017993,2]
[393358233,1762521039615,-151.0,0.00017993,2]
[393358234,1762521039625,-455.158256,0.00017993,2]
[393358235,1762521039635,-151.0,0.00017993,2]
[393358236,1762521039644,-151.0,0.00017993,2]
[393358237,1762521039654,-158.628141,0.00017993,2]
[393358238,1762521039664,-151.0,0.00017993,2]
[393358239,1762521039673,-151.0,0.00017993,2]
[393358240,1762521039682,-1051.515266,0.00017993,2]
[393358241,1762521039692,-151.0,0.00017993,2]
[393358242,1762521039701,-1051.515266,0.00017993,2]
[393358243,1762521039711,-300.658385,0.00017993,2]
[393358244,1762521039720,-1051.515266,0.00017993,2]
[393358245,1762521039730,-151.0,0.00017993,2]
[393358246,1762521039739,-1051.515266,0.00017993,2]
[393358247,1762521039748,-151.0,0.00017993,2]
[393358248,1762521039757,-368.375632,0.00017993,2]
[393358249,1762521039767,-3451.281288,0.00017993,2]
[393358250,1762521039776,-3451.281288,0.00017993,2]
[393358251,1762521039786,-368.375632,0.00017993,2]
[393358252,1762521039795,-151.0,0.00017993,2]
[393358253,1762521039805,-368.375632,0.00017993,2]
[393358254,1762521039814,-3451.281288,0.00017993,2]
[393358255,1762521039824,-155.267409,0.00017993,2]
[393358256,1762521039834,-3451.281288,0.00017993,2]
[393358257,1762521039843,-151.0,0.00017993,2]
[393358258,1762521039853,-368.375632,0.00017993,2]
[393358259,1762521039864,-151.0,0.00017993,2]
[393358260,1762521039873,-151.0,0.00017993,2]
[393358261,1762521039883,-151.0,0.00017993,2]
[393358262,1762521039893,-163.106762,0.00017993,2]
[393358263,1762521039902,-151.0,0.00017993,2]
[393358264,1762521039912,-151.0,0.00017993,2]
[393358266,1762521039922,-151.0,0.00017993,2]
[393358267,1762521039933,-151.0,0.00017993,2]
[393358268,1762521039943,-151.0,0.00017993,2]
[393358269,1762521039953,-184.723214,0.00017993,2]
[393358270,1762521039963,-151.0,0.00017993,2]
[393358271,1762521039973,-151.0,0.00017993,2]
[393358272,1762521039983,-151.0,0.00017993,2]
[393358273,1762521039992,-151.0,0.00017993,2]
[393358274,1762521040002,-159.621312,0.00017993,2]
[393358275,1762521040012,-151.0,0.00017993,2]
[393358276,1762521040021,-151.0,0.00017993,2]
[393358277,1762521040034,-236.806063,0.00017993,2]
[393358278,1762521040044,-151.0,0.00017993,2]
[393358279,1762521040055,-151.0,0.00017993,2]
[393358280,1762521040065,-151.0,0.00017993,2]
[393358281,1762521040077,-151.0,0.00017993,2]
[393358282,1762521040087,-151.0,0.00017993,2]
[393358283,1762521040096,-151.0,0.00017993,2]
[393358284,1762521040107,-151.0,0.00017993,2]
[393358285,1762521040116,-151.0,0.00017993,2]
[393358286,1762521040126,-151.0,0.00017993,2]
[393358287,1762521040136,-1630.140865,0.00017993,2]
[393358288,1762521040147,-151.0,0.00017993,2]
[393358289,1762521040157,-151.0,0.00017993,2]
[393358290,1762521040165,-151.0,0.00017993,2]
[393358291,1762521040175,-1630.140865,0.00017993,2]
[393358292,1762521040185,-158.617892,0.00017993,2]
[393358293,1762521040195,-296.415688,0.00017993,2]
[393358294,1762521040205,-1630.140865,0.00017993,2]
[393358295,1762521040215,-318.06,0.00017996,2]
[393358296,1762521040224,-300.0,0.00017997,2]
[393358297,1762521040234,-300.0,0.00017997,2]
[393358298,1762521040244,-124267.8754014,0.00017998,2]
[393358299,1762521040254,-578.81216164,0.00017999,2]
[393358300,1762521040264,-505.03645797,0.00017999,2]
[393358301,1762521040274,-300.0,0.00017999,2]
[393358302,1762521040292,-333.0551169,0.00017999,2]
[393358303,1762521040302,-300.0,0.00017999,2]
[393358304,1762521040312,-300.0,0.00017999,2]
[393358305,1762521040321,-660984.27362107,0.00018,2]
[393358306,1762521040521,-995.97498,0.00018,2]
[393358307,1762521040548,-7488.39143458,0.00018,2]
[393358308,1762521040559,-127748.87398564,0.00018,2]
[393358309,1762521040569,-2373.46507626,0.00018,2]
[393358310,1762521040782,-226.30451774,0.00017994,2]
[393358311,1762521040792,-205.69548226,0.00018,2]
[393358312,1762521040810,-797.3604,0.00018,2]
[393358313,1762521041006,-16079.55284444,0.00018,2]
[393358351,1762521042580,-1472.71135016,0.00017993,2]
[393358353,1762521042592,-157.42951484,0.00017993,2]
[393358355,1762521042601,-142.57048516,0.00017993,2]
[393358357,1762521042612,-334.51723102,0.00017993,2]
[393358361,1762521042640,-506.05359582,0.00017993,2]
[393358363,1762521042649,-9206.96495267,0.00018,2]
[393358364,1762521042660,-576.48,0.00018,2]
[393358365,1762521042697,-156.133342,0.00017993,2]
[393358366,1762521042706,-1027.47668082,0.00018,2]
[393358368,1762521045941,-983.141312,0.00017993,2]
[393358369,1762521045950,-983.141312,0.00017993,2]
[393358370,1762521045960,-156.133342,0.00017993,2]
[393358371,1762521045969,-877.584034,0.00018,2]
[393358372,1762521045981,-355.25200426,0.00018,2]
[393358515,1762521471554,15000.0,0.00018,5]
[393358516,1762521529131,1199.50158835,0.00017999,5]
[393358521,1762521661203,999.0,0.00016788,3]
[393358522,1762522108236,4959.2,0.00030137,120]
[393358545,1762522231754,-500.0,0.00016516,2]
[393358546,1762522231763,-235.12,0.00016528,2]
[393358547,1762522231773,-250.0,0.00016666,2]
[393358548,1762522231781,-224.68232437,0.000167,2]
[393358549,1762522231790,-200.0,0.00016759,2]
[393358550,1762522231799,-1472.3,0.00016829,2]
[393358551,1762522231808,-1200.0,0.00017298,2]
[393358552,1762522231817,-300.0,0.00017298,2]
[393358553,1762522231826,-1200.0,0.00017298,2]
[393358554,1762522231835,-300.0,0.00017298,2]
[393358555,1762522231844,-300.0,0.00017298,2]
[393358556,1762522231854,-1200.0,0.000173,2]
[393358557,1762522231863,-711.1423,0.000173,2]
[393358558,1762522231872,-2500.0,0.000173,2]
[393358559,1762522231881,-2441.587,0.000173,2]
[393358560,1762522231890,-1000.0,0.000173,2]
[393358561,1762522231899,-481.46948169,0.00017308,2]
[393358562,1762522231908,-550.0,0.00017309,2]
[393358563,1762522231918,-8044.32462778,0.0001731,2]
[393358564,1762522231926,-4772.17483065,0.00017355,2]
[393358565,1762522232054,-5227.81516935,0.00017355,2]
[393358566,1762522232063,-3652.70189705,0.00017355,2]
[393358567,1762522232090,-287.0,0.00017355,2]
[393358568,1762522232101,-262.30035,0.00017355,2]
[393358569,1762522232112,-5797.98775295,0.00017355,2]
[393358570,1762522232121,-2365.3,0.00017355,2]
[393358571,1762522232131,-150.99,0.00017355,2]
[393358572,1762522232140,-150.99,0.00017372,2]
[393358573,1762522232150,-207.36407265,0.00017372,2]
[393358574,1762522232185,-5528.89592735,0.00017372,2]
[393358575,1762522232196,-999.99,0.00017372,2]
[393358576,1762522232205,-162.31407263,0.00017373,2]
[393358577,1762522232216,-257.45818449,0.00017373,2]
[393358598,1762522237599,-394.16337726,0.000173,2]
[393358599,1762522237608,-81.09519914,0.00017373,2]
[393358600,1762522237617,-500.0,0.00017373,2]
[393358601,1762522237626,-500.0,0.00017373,2]
[393358602,1762522237635,-500.0,0.00017373,2]
[393358603,1762522237645,-500.0,0.00017373,2]
[393358604,1762522237654,-500.0,0.00017373,2]
[393358605,1762522237663,-500.0,0.00017373,2]
[393358606,1762522237672,-500.0,0.00017373,2]
[393358607,1762522237681,-500.0,0.00017373,2]
[393358608,1762522237690,-500.0,0.00017373,2]
[393358609,1762522237699,-552.1894013,0.00017373,2]
[393358610,1762522237709,-500.0,0.00017373,2]
[393358611,1762522237718,-620.64256179,0.00017373,2]
[393358612,1762522237727,-500.0,0.00017373,2]
[393358613,1762522237736,-476.03838915,0.00017373,2]
[393358614,1762522237745,-500.0,0.00017373,2]
[393358615,1762522237754,-500.0,0.00017373,2]
[393358616,1762522237764,-500.0,0.00017373,2]
[393358617,1762522237774,-500.0,0.00017373,2]
[393358618,1762522237783,-500.0,0.00017373,2]
[393358619,1762522237792,-500.0,0.00017373,2]
[393358620,1762522237801,-213.87973632,0.00017375,2]
[393358621,1762522237811,-7169.85025149,0.00017376,2]
[393358622,1762522237822,-260.860001,0.00017376,2]
[393358623,1762522237833,-613.61437528,0.00017376,2]
[393358624,1762522237843,-500.0,0.0001739,2]
[393358625,1762522237852,-63.15440589,0.0001739,2]
[393358626,1762522237863,-174.5742575,0.0001739,2]